bitfinex-derivatives/quotes_SOLF0:USTF0_20240906
["timestamp","ask_amount","ask_price","bid_price","bid_amount"]
[1725589888427,23.51,130.76,130.57,77.26253197]
[1725589888635,23.51,130.71,130.62,23.51]
[1725589889230,3.8267,130.7,130.64,3.8281]
[1725589889532,0.0530891,130.68,130.66,0.05608555]
[1725589889740,0.04918194,130.68,130.66,0.05629155]
[1725589889924,3.87648194,130.68,130.66,0.05629155]
[1725589890320,0.04918194,130.68,130.66,0.05629155]
[1725589891834,3.8273,130.67,130.66,0.05629155]
[1725589892631,3.87628194,130.68,130.66,0.05629155]
[1725589895936,0.04918194,130.68,130.66,0.05629155]
[1725589896939,0.04918194,130.68,130.66,3.88369155]
[1725589901130,0.04918194,130.68,130.66,0.05629155]
[1725589902039,27.38638194,130.68,130.66,0.05629155]
[1725589902239,23.55918194,130.68,130.66,0.05629155]
[1725589902442,0.04918194,130.68,130.66,0.05629155]
[1725589904343,0.04918194,130.68,130.66,3.88389155]
[1725589906641,0.04918194,130.68,130.66,0.05629155]
[1725589907942,9.46918194,130.68,130.66,0.05629155]
[1725589909841,0.04918194,130.68,130.66,0.05629155]
[1725589910439,0.04918194,130.68,130.67,3.8273]
[1725589910643,1.3856,130.76,130.67,9.42]
[1725589910847,9.42,130.75,130.69,9.42]
[1725589911745,0.05287313,130.73,130.71,0.05133759]
[1725589918846,0.05287313,130.73,130.71,3.87743759]
[1725589919248,0.05287313,130.73,130.71,0.05133759]
[1725589920449,3.87847313,130.73,130.71,0.05133759]
[1725589921048,23.52,130.72,130.66,3.8276]
[1725589921250,23.52,130.7,130.65,2.6341]
[1725589921953,23.52,130.7,130.66,3.8274]
[1725589922148,0.05270539,130.69,130.67,0.0540352]
[1725589922345,3.84347807,130.68,130.67,0.0540352]
[1725589922550,0.05270539,130.69,130.67,0.0540352]
[1725589923149,3.91072904,130.69,130.67,0.0540352]
[1725589923559,0.05270539,130.69,130.67,3.8813352]
[1725589923759,0.05270539,130.69,130.67,0.0540352]
[1725589924063,0.05270539,130.69,130.68,3.827]
[1725589930169,0.05270539,130.69,130.67,0.0540352]
[1725589931565,3.87950539,130.69,130.67,0.0540352]
[1725589931957,13.29950539,130.69,130.67,0.0540352]
[1725589934062,0.05270539,130.69,130.67,0.0540352]
[1725589936663,23.54,130.68,130.67,0.0540352]
[1725589936855,23.54,130.68,130.59,2.6292]
[1725589937054,23.54,130.66,130.59,2.6292]
[1725589937263,27.3679,130.66,130.61,3.829]
[1725589937967,0.0535742,130.65,130.62,3.88307515]
[1725589938164,0.0535742,130.65,130.62,0.05437515]
[1725589938965,0.0535742,130.65,130.63,3.8283]
[1725589941467,0.0535742,130.65,130.62,3.88307515]
[1725589941666,3.81805295,130.64,130.62,3.88307515]
[1725589942168,0.0535742,130.65,130.62,3.88307515]
[1725589942564,0.0535742,130.65,130.63,3.8285]
[1725589946967,0.0535742,130.65,130.64,3.8282]
[1725589948079,0.0535742,130.65,130.63,3.8284]
[1725589949175,0.0535742,130.65,130.62,3.88307515]
[1725589949372,3.84443866,130.65,130.62,3.88307515]
[1725589949573,0.0535742,130.65,130.62,3.88307515]
[1725589952079,0.0535742,130.65,130.63,3.8285]
[1725589956182,0.0535742,130.65,130.64,3.8282]
[1725589956680,0.0535742,130.65,130.64,13.2382]
[1725589956879,337.0,130.77,130.67,9.41]
[1725589957081,9.41,130.74,130.68,9.41]
[1725589957285,3.87673231,130.73,130.7,3.8262]
[1725589957977,3.93490777,130.73,130.7,3.88022505]
[1725589959374,13.34490777,130.73,130.7,3.88022505]
[1725589959971,3.93490777,130.73,130.7,3.88022505]
[1725589961878,3.93490777,130.73,130.71,3.8261]
[1725589962284,0.05817546,130.73,130.7,0.05402505]
[1725589962495,0.05817546,130.73,130.72,3.8259]
[1725589962781,3.86968018,130.78,130.72,23.53]
[1725589963086,23.53,130.81,130.74,3.8251]
[1725589963280,4.10487429,130.8,130.74,3.8251]
[1725589963479,3.8236,130.8,130.74,3.8251]
[1725589963787,0.05389157,130.78,130.76,0.04971782]
[1725589967298,0.05389157,130.78,130.77,3.8244]
[1725589967990,3.92160459,130.82,130.8,3.8233]
[1725589968285,23.53,130.85,130.8,3.8233]
[1725589968496,0.28120105,130.84,130.8,3.8233]
[1725589968889,0.05324678,130.83,130.81,0.04948577]
[1725589970292,0.05324678,130.83,130.82,3.823]
[1725589970995,0.05324678,130.83,130.81,3.87268577]
[1725589974694,0.05324678,130.83,130.81,0.04948577]
[1725589975199,0.05324678,130.83,130.81,3.87268577]
[1725589975492,0.05324678,130.83,130.81,0.04948577]
[1725589976592,0.05324678,130.83,130.81,23.57948577]
[1725589977390,0.05324678,130.83,130.82,3.823]
[1725589978789,0.05324678,130.83,130.81,3.87268577]
[1725589980101,0.05324678,130.83,130.81,0.04948577]
[1725589981899,3.87594678,130.83,130.81,0.04948577]
[1725589984801,3.823,130.82,130.81,0.04948577]
[1725589985497,3.87594678,130.83,130.81,0.04948577]
[1725589986098,0.05324678,130.83,130.81,0.04948577]
[1725589987307,0.05324678,130.83,130.81,3.87268577]
[1725589987805,0.05324678,130.83,130.82,3.823]
[1725589988203,0.05324678,130.83,130.81,0.04948577]
[1725589989302,0.05324678,130.83,130.81,3.87258577]
[1725589993712,0.05324678,130.83,130.81,0.04948577]
[1725589996413,0.05324678,130.83,130.81,3.87268577]
[1725589999118,0.05324678,130.83,130.82,27.353]
[1725589999420,1.4323,130.91,130.82,23.53]
[1725589999622,6.49885956,130.91,130.82,23.53]
[1725590000214,0.05451294,130.88,130.85,0.05221922]
[1725590002420,3.87581294,130.88,130.85,0.05221922]
[1725590002823,0.05451294,130.88,130.85,3.87401922]
[1725590004316,0.05451294,130.88,130.85,0.05221922]
[1725590007231,3.8217,130.87,130.85,0.05221922]
[1725590010414,3.8218,130.86,130.85,0.05221922]
[1725590010825,23.53,130.87,130.81,112.93643712]
[1725590011011,23.53,130.87,130.8,3.8234]
[1725590011012,3.8224,130.84,130.8,3.8234]
[1725590011211,7.72822042,130.84,130.8,3.8234]
[1725590011617,3.8227,130.83,130.79,3.8238]
[1725590011823,3.90582042,130.84,130.77,23.53]
[1725590012023,0.05748803,130.82,130.8,0.0529027]
[1725590012226,3.8232,130.81,130.8,0.0529027]
[1725590013023,3.91270427,130.81,130.8,0.0529027]
[1725590013221,3.88048803,130.82,130.8,0.0529027]
[1725590013728,7.70255493,130.82,130.8,0.0529027]
[1725590015630,3.8232,130.81,130.8,0.0529027]
[1725590015820,3.87955493,130.82,130.8,0.0529027]
[1725590016021,7.70275493,130.82,130.8,0.0529027]
[1725590017827,0.05748803,130.82,130.8,0.0529027]
[1725590018225,0.05748803,130.82,130.81,3.8232]
[1725590020127,0.05748803,130.82,130.8,3.8764027]
[1725590021527,1.3578,130.88,130.8,23.5829027]
[1725590021732,1.3578,130.88,130.8,23.53]
[1725590022231,3.8217,130.87,130.82,3.8227]
[1725590022632,0.05603584,130.86,130.83,0.05253599]
[1725590023428,0.05603584,130.86,130.83,3.87513599]
[1725590023630,0.05603584,130.86,130.83,0.05253599]
[1725590023829,0.05603584,130.86,130.85,3.8221]
[1725590024038,2.6911,130.95,130.85,23.53]
[1725590024226,2.6911,130.95,130.87,23.53]
[1725590024227,0.28100518,130.94,130.87,23.53]
[1725590024429,4.0373,130.95,130.87,23.53]
[1725590024736,4.0373,130.95,130.87,27.35921917]
[1725590025140,7.8567,130.95,130.9,3.87470811]
[1725590025638,7.8567,130.95,130.9,0.05410811]
[1725590026136,23.53,130.92,130.9,0.05410811]
[1725590027433,3.8203,130.91,130.9,0.05410811]
[1725590028440,3.8198,130.93,130.9,0.05410811]
[1725590029229,4.0373,130.95,130.9,0.05410811]
[1725590029533,0.28098748,130.94,130.9,0.05410811]
[1725590029730,3.8201,130.92,130.9,0.05410811]
[1725590036345,3.8203,130.91,130.9,0.05410811]
[1725590039051,3.8198,130.93,130.9,0.05410811]
[1725590039250,1.3462,130.95,130.9,0.05410811]
[1725590039450,0.28098135,130.94,130.9,0.05410811]
[1725590039752,3.8198,130.93,130.9,0.05410811]
[1725590039967,1.3462,130.95,130.9,0.05410811]
[1725590040159,0.28097569,130.94,130.9,0.05410811]
[1725590040363,3.82,130.93,130.9,0.05410811]
[1725590041951,1.3462,130.95,130.9,0.05410811]
[1725590042152,23.8109745,130.94,130.9,0.05410811]
[1725590042361,0.2809745,130.93,130.9,0.05410811]
[1725590042664,3.8203,130.91,130.9,0.05410811]
[1725590043859,23.53,130.94,130.9,0.05410811]
[1725590044059,0.28101067,130.93,130.9,0.05410811]
[1725590044462,3.8203,130.92,130.9,0.05410811]
[1725590044862,1.3462,130.95,130.9,0.05410811]
[1725590046467,3.8198,130.93,130.9,0.05410811]
[1725590047263,3.8195,130.94,130.9,3.87470811]
[1725590050561,3.85107091,130.93,130.9,3.87470811]
[1725590051563,3.8193,130.95,130.91,3.8203]
[1725590051771,4.1684,130.97,130.9,0.05410811]
[1725590051974,0.28093822,130.96,130.9,0.05410811]
[1725590053367,3.8196,130.94,130.9,3.87470811]
[1725590054866,3.8192,130.95,130.91,3.8203]
[1725590055070,3.8192,130.95,130.92,0.05715367]
[1725590056674,3.819,130.96,130.92,0.05715367]
[1725590058677,1.3224,131.01,130.93,23.53]
[1725590058976,0.28089531,131.0,130.96,0.049392]
[1725590059277,2.7024,131.05,130.97,23.58840527]
[1725590059278,3.83557747,131.03,130.97,23.58840527]
[1725590059573,0.28082701,131.02,130.99,0.05068974]
[1725590059783,0.28082182,131.01,130.99,0.05068974]
[1725590059980,1.3881,131.05,131.01,3.8174]
[1725590060170,0.28077036,131.04,131.02,0.051737]
[1725590061074,4.09737036,131.04,131.02,0.051737]
[1725590061276,0.28077036,131.03,131.02,0.051737]
[1725590062065,4.09757036,131.03,131.02,0.051737]
[1725590062270,0.28077036,131.03,130.95,23.53]
[1725590062773,3.8173,131.02,130.96,3.8186]
[1725590063073,3.8177,131.0,130.95,23.53]
[1725590063269,3.8177,131.0,130.96,0.05814568]
[1725590063270,0.05280844,130.99,130.96,0.05814568]
[1725590063470,0.05280844,130.99,130.96,0.04902342]
[1725590063674,3.87110844,130.99,130.96,0.04902342]
[1725590064280,3.82350809,130.98,130.96,0.04902342]
[1725590065476,0.05280844,130.99,130.96,0.04902342]
[1725590065875,0.05280844,130.99,130.96,3.86782342]
[1725590066975,0.05280844,130.99,130.96,23.57902342]
[1725590067174,0.05280844,130.99,130.98,23.53]
[1725590067372,0.05280844,130.99,130.98,27.3483]
[1725590067769,3.8168,131.04,130.98,27.3483]
[1725590068378,3.817,131.03,130.98,23.53]
[1725590068575,5.1582315,131.05,130.97,1.3811]
[1725590068776,0.28078295,131.04,130.99,0.04976375]
[1725590068973,5.1582315,131.05,130.99,0.04976375]
[1725590070381,8.9745315,131.05,131.0,3.8177]
[1725590070569,8.9745315,131.05,130.99,0.04976375]
[1725590070973,8.9745315,131.05,130.99,3.86766375]
[1725590071172,5.2044,131.05,130.99,3.86766375]
[1725590071376,9.04938419,131.05,130.99,3.86766375]
[1725590071979,3.8166,131.04,130.99,3.86766375]
[1725590073293,3.81384901,131.03,130.99,3.86766375]
[1725590073983,5.2044,131.05,130.99,0.04976375]
[1725590074191,5.14924938,131.05,131.0,23.53]
[1725590074881,5.14924938,131.05,131.01,3.8174]
[1725590075081,5.14924938,131.05,131.02,0.05771355]
[1725590075684,8.96554938,131.05,131.02,0.05771355]
[1725590076185,5.14924938,131.05,131.02,0.05771355]
[1725590077987,228.0,131.19,131.04,23.53]
[1725590078185,191.09046,131.12,131.1,0.04898132]
[1725590078389,191.09046,131.12,131.1,0.0511769]
[1725590080390,191.09046,131.12,131.1,27.3956769]
[1725590080590,191.09046,131.12,131.1,23.5811769]
[1725590082093,191.09046,131.12,131.1,27.3958769]
[1725590082295,191.09046,131.12,131.1,23.5811769]
[1725590083191,191.09046,131.12,131.1,0.0511769]
[1725590085390,3.90539748,131.11,131.1,0.0511769]
[1725590085895,194.90466,131.12,131.1,0.0511769]
[1725590086394,3.77870293,131.11,131.1,0.0511769]
[1725590086992,3.8145,131.11,131.1,0.0511769]
[1725590087196,3.8145,131.11,131.06,23.53]
[1725590087197,4.18296098,131.11,131.06,23.53]
[1725590087396,191.09046,131.12,131.06,23.53]
[1725590087594,0.28061818,131.11,131.06,23.53]
[1725590088098,0.0511769,131.1,131.07,0.05251243]
[1725590088393,3.8660769,131.1,131.07,0.05251243]
[1725590089396,3.8153,131.09,131.07,0.05251243]
[1725590091388,3.8154,131.08,131.07,0.05251243]
[1725590092597,1.4002,131.09,131.04,23.53]
[1725590092797,1.4002,131.09,131.03,23.53]
[1725590092994,23.53,131.07,130.86,9.39802962]
[1725590093200,23.53,131.03,130.94,23.53]
[1725590093387,27.39833076,131.03,130.94,23.53]
[1725590093587,27.39833076,131.03,130.97,0.05768645]
[1725590093588,3.8183,130.98,130.97,0.05768645]
[1725590094795,0.05687697,131.0,130.9,23.53]
[1725590094796,23.53,131.0,130.9,23.53]
[1725590095299,3.8195,130.94,130.9,23.53]
[1725590095497,3.8195,130.94,130.89,3.8208]
[1725590095498,7.60272898,130.94,130.89,3.8208]
[1725590095888,0.05675251,130.93,130.9,0.05762843]
[1725590096400,0.05675251,130.93,130.9,3.87812843]
[1725590096993,0.05675251,130.93,130.9,0.05762843]
[1725590100803,23.58675251,130.93,130.9,0.05762843]
[1725590101001,24.8412,130.93,130.83,26.3679]
[1725590101400,1.3112,130.93,130.85,23.53]
[1725590102105,0.0582211,130.9,130.88,0.05246531]
[1725590108011,0.0582211,130.9,130.88,23.58246531]
[1725590109007,0.0582211,130.9,130.89,3.8209]
[1725590109204,0.0582211,130.9,130.89,5.1457]
[1725590110205,0.0582211,130.9,130.89,1.3248]
[1725590111218,0.0582211,130.9,130.88,0.05246531]
[1725590111922,0.0582211,130.9,130.88,3.87366531]
[1725590112422,0.0582211,130.9,130.89,27.3509]
[1725590114120,0.0582211,130.9,130.88,3.87356531]
[1725590114514,0.0582211,130.9,130.88,0.05246531]
[1725590118517,0.0582211,130.9,130.88,3.87356531]
[1725590119817,0.0582211,130.9,130.89,3.8209]
[1725590120017,0.0582211,130.9,130.89,27.3509]
[1725590120922,3.78322898,130.94,130.89,23.53]
[1725590121122,1.309,130.97,130.89,23.53]
[1725590121424,1.309,130.97,130.9,1.3714]
[1725590121625,5.1278,130.97,130.92,3.8198]
[1725590122020,0.05519862,130.96,130.93,0.05767869]
[1725590122220,3.80873897,130.95,130.93,0.05767869]
[1725590123825,3.80873897,130.95,130.93,3.87737869]
[1725590124028,3.80873897,130.95,130.93,0.05767869]
[1725590128127,3.8193,130.95,130.93,0.05767869]
[1725590128327,3.82840705,130.94,130.93,0.05767869]
[1725590132421,3.87419862,130.96,130.93,0.05767869]
[1725590132729,7.63794021,130.96,130.93,0.05767869]
[1725590135036,3.87419862,130.96,130.93,0.05767869]
[1725590135533,7.71485253,130.95,130.93,0.05767869]
[1725590135722,3.8192,130.95,130.93,0.05767869]
[1725590136326,3.76039743,130.94,130.93,0.05767869]
[1725590136832,3.8194,130.94,130.93,0.05767869]
[1725590142138,12.0,130.93,130.75,21.60347324]
[1725590142330,12.0,130.93,130.83,23.53]
[1725590142331,36.8333,130.93,130.83,23.53]
[1725590142530,40.62513264,130.93,130.83,23.53]
[1725590142727,3.8211,130.89,130.84,3.8223]
[1725590143137,0.05450597,130.88,130.85,0.05528606]
[1725590143536,0.05450597,130.88,130.85,27.40728606]
[1725590145030,0.05450597,130.88,130.86,3.8218]
[1725590145535,0.05450597,130.88,130.85,23.58528606]
[1725590146142,0.05450597,130.88,130.85,27.40718606]
[1725590146341,0.05450597,130.88,130.85,23.58528606]
[1725590147342,0.05450597,130.88,130.86,3.8217]
[1725590149534,0.05450597,130.88,130.85,23.58528606]
[1725590149736,0.05450597,130.88,130.85,24.89988606]
[1725590149935,3.79183264,130.93,130.87,23.53]
[1725590150138,1.412,130.94,130.87,23.53]
[1725590150544,5.25333674,130.94,130.87,23.53]
[1725590151041,0.05094936,130.92,130.89,0.05072394]
[1725590151451,3.87124936,130.92,130.89,0.05072394]
[1725590152046,3.87124936,130.92,130.89,3.87152394]
[1725590152047,0.05094936,130.92,130.89,3.87152394]
[1725590152351,1.3365,130.98,130.9,23.53]
[1725590152552,1.408,131.0,130.92,23.53]
[1725590152749,0.28087893,130.99,130.92,23.53]
[1725590153447,3.8184,130.98,130.93,3.8196]
[1725590153650,0.05486558,130.97,130.94,0.05005345]
[1725590153947,3.8189,130.96,130.94,0.05005345]
[1725590157545,3.87346558,130.97,130.94,0.05005345]
[1725590160747,3.8192,130.95,130.94,0.05005345]
[1725590161453,3.8198,130.93,130.89,3.8208]
[1725590161649,3.74052945,130.92,130.89,3.8208]
[1725590161847,3.8203,130.92,130.88,3.8211]
[1725590162050,3.80204377,130.91,130.88,3.8211]
[1725590162457,3.80204377,130.91,130.88,3.87723175]
[1725590162458,3.85268215,130.91,130.88,3.87723175]
[1725590163743,3.85268215,130.91,130.88,0.05613175]
[1725590167548,7.67318215,130.91,130.88,0.05613175]
[1725590168952,0.05063838,130.91,130.89,23.53]
[1725590169659,0.05063838,130.91,130.9,3.8206]
[1725590169853,0.05063838,130.91,130.89,23.53]
[1725590170757,0.05063838,130.91,130.89,27.3508]
[1725590170956,0.05063838,130.91,130.89,23.53]
[1725590171758,0.05063838,130.91,130.88,0.05613175]
[1725590173460,3.87103838,130.91,130.88,0.05613175]
[1725590174860,0.05063838,130.91,130.88,0.05613175]
[1725590175157,0.05063838,130.91,130.88,23.58613175]
[1725590175554,3.90762838,130.93,130.88,23.58613175]
[1725590175756,24.9176,130.99,130.9,3.8204]
[1725590175960,3.8194,130.95,130.9,3.8204]
[1725590176363,3.8194,130.95,130.91,3.8202]
[1725590176666,0.05354856,130.94,130.92,0.0536869]
[1725590176865,3.73536906,130.93,130.92,0.0536869]
[1725590181764,0.05354856,130.94,130.92,3.8736869]
[1725590182159,0.05354856,130.94,130.93,3.8197]
[1725590182959,0.05354856,130.94,130.93,27.3497]
[1725590183266,5.28291233,131.0,130.93,27.3497]
[1725590183267,3.91284597,131.0,130.94,23.53]
[1725590183463,104.67722033,131.03,130.94,24.883]
[1725590183464,128.20722033,131.03,130.94,24.883]
[1725590183663,0.28079957,131.02,130.94,24.883]
[1725590183863,3.86088356,131.02,130.94,24.883]
[1725590184171,0.05256649,130.99,130.97,0.05791911]
[1725590186765,0.05256649,130.99,130.97,3.87641911]
[1725590187156,0.05256649,130.99,130.97,0.05791911]
[1725590188870,0.05256649,130.99,130.98,3.8183]
[1725590189967,0.05256649,130.99,130.97,3.87641911]
[1725590190171,0.05256649,130.99,130.97,0.05791911]
[1725590190868,0.05256649,130.99,130.97,3.87641911]
[1725590191268,3.87056649,130.99,130.97,0.05791911]
[1725590191775,0.05256649,130.99,130.97,0.05791911]
[1725590191960,3.87066649,130.99,130.97,0.05791911]
[1725590194168,3.8183,130.98,130.97,0.05791911]
[1725590194561,0.05256649,130.99,130.97,0.05791911]
[1725590198672,0.05256649,130.99,130.97,3.87651911]
[1725590199570,0.05256649,130.99,130.97,0.05791911]
[1725590203877,0.05256649,130.99,130.97,3.87641911]
[1725590204067,0.05256649,130.99,130.97,0.05791911]
[1725590205377,0.05256649,130.99,130.98,3.8183]
[1725590208582,0.05256649,130.99,130.98,27.3483]
[1725590208968,24.941,131.09,131.0,3.8177]
[1725590209174,0.28072535,131.07,131.0,27.3477]
[1725590209885,3.8164,131.05,131.02,0.0573037]
[1725590210876,6.62283228,131.08,131.02,0.0573037]
[1725590210877,3.8165,131.04,131.02,0.0573037]
[1725590213983,6.62283228,131.08,131.02,0.0573037]
[1725590214189,0.2807245,131.07,131.02,0.0573037]
[1725590214485,3.8168,131.03,131.02,0.0573037]
[1725590214674,6.62283228,131.08,131.02,0.0573037]
[1725590214874,0.28072422,131.07,131.02,0.0573037]
[1725590215087,3.8167,131.04,131.02,0.0573037]
[1725590216192,7.70874276,131.04,131.02,0.0573037]
[1725590216882,3.8168,131.03,131.02,0.0573037]
[1725590217080,3.89204276,131.04,131.02,0.0573037]
[1725590217283,9.39,131.07,131.02,0.0573037]
[1725590217483,0.28072241,131.06,131.02,0.0573037]
[1725590217686,3.8163,131.05,131.02,0.0573037]
[1725590218386,7.57507621,131.04,131.02,0.0573037]
[1725590220383,3.8168,131.03,131.02,0.0573037]
[1725590220689,3.75847621,131.04,130.96,9.39]
[1725590220883,9.39,131.04,130.97,9.39]
[1725590221078,3.8173,131.02,130.97,13.2085]
[1725590221591,0.05706726,131.01,130.98,0.05387221]
[1725590221989,0.05706726,131.01,130.99,9.39]
[1725590222688,0.05706726,131.01,130.99,13.2079]
[1725590222893,0.05706726,131.01,130.99,9.39]
[1725590225795,0.05706726,131.01,131.0,13.2077]
[1725590226092,96.03981138,131.07,131.0,9.39]
[1725590226093,3.84698453,131.06,131.0,9.39]
[1725590226297,3.84698453,131.06,131.04,9.39]
[1725590226892,96.03981138,131.07,131.05,9.39]
[1725590227102,3.78587885,131.09,131.05,9.39]
[1725590227395,191.04265,131.11,131.07,9.39]
[1725590227790,194.9493234,131.11,131.07,9.39]
[1725590228502,191.04265,131.11,131.07,9.39]
[1725590229002,3.82384506,131.1,131.07,9.39]
[1725590229194,3.82384506,131.1,131.08,3.8153]
[1725590229891,191.04265,131.11,131.08,3.8153]
[1725590230193,191.04265,131.11,131.07,13.2056]
[1725590230400,194.92069609,131.11,131.07,13.2056]
[1725590231490,191.04265,131.11,131.09,9.39]
[1725590231702,191.04265,131.11,131.09,9.44322261]
[1725590231899,191.04265,131.11,131.09,0.05322261]
[1725590232092,191.04265,131.11,131.09,9.44322261]
[1725590232297,191.04265,131.11,131.1,13.2048]
[1725590232490,191.04265,131.11,131.1,9.39]
[1725590232697,186.71145,131.11,131.1,13.2048]
[1725590232903,88.43585,131.11,131.1,13.2048]
[1725590233098,57.14845,131.11,131.1,13.2048]
[1725590233300,52.63105,131.11,131.1,13.2048]
[1725590233599,52.63105,131.11,131.1,17.1011754]
[1725590233998,3.74864371,131.17,131.14,3.8135]
[1725590234194,0.28051026,131.16,131.05,1.3958]
[1725590234503,1.4358,131.18,131.13,23.45]
[1725590234699,0.28049795,131.17,131.13,27.2637]
[1725590235001,0.28049795,131.17,131.13,23.45]
[1725590235196,0.04922715,131.16,131.14,0.0560497]
[1725590236302,0.04922715,131.16,131.14,3.8696497]
[1725590236801,0.04922715,131.16,131.14,0.0560497]
[1725590237010,0.32974579,131.16,131.14,0.0560497]
[1725590237505,0.04922715,131.16,131.14,0.0560497]
[1725590237701,0.32974245,131.16,131.1,3.8145]
[1725590237900,0.2805153,131.16,131.09,23.45]
[1725590238105,0.2805153,131.16,131.07,23.45]
[1725590238808,0.05327774,131.13,131.1,0.0588083]
[1725590239804,0.05327774,131.13,131.1,3.8736083]
[1725590242301,0.05327774,131.13,131.11,3.8144]
[1725590242714,337.0,131.3,131.11,23.45]
[1725590242899,2.7557,131.21,131.15,23.45]
[1725590243100,0.28044453,131.2,131.15,23.45]
[1725590243312,3.80932191,131.19,131.17,3.8127]
[1725590243513,3.80932191,131.19,131.15,23.45]
[1725590243714,0.05300474,131.18,131.17,3.8128]
[1725590244113,0.05300474,131.18,131.17,27.2628]
[1725590244609,0.05300474,131.18,131.17,3.8128]
[1725590245406,0.05300474,131.18,131.16,3.86191952]
[1725590245910,0.05300474,131.18,131.16,0.04891952]
[1725590248618,3.86550474,131.18,131.13,23.45]
[1725590248917,0.05300474,131.18,131.11,23.45]
[1725590249111,0.2804665,131.19,131.11,23.45]
[1725590249414,3.8128,131.17,131.12,3.8142]
[1725590249617,0.05204878,131.16,131.13,0.04907095]
[1725590250113,3.72288949,131.15,131.13,0.04907095]
[1725590251014,0.05204878,131.16,131.13,0.04907095]
[1725590251219,1.3499,131.15,131.13,0.04907095]
[1725590251516,3.75417748,131.14,131.13,0.04907095]
[1725590254411,6.5648,131.15,131.13,0.04907095]
[1725590254924,6.5423991,131.15,131.13,0.04907095]
[1725590255211,10.3558991,131.15,131.13,0.04907095]
[1725590255617,6.5423991,131.15,130.97,23.45]
[1725590255813,5.1329,131.14,131.07,23.45]
[1725590256612,0.04870564,131.12,131.09,0.05394349]
[1725590258418,0.04870564,131.12,131.09,3.86884349]
[1725590261526,0.04870564,131.12,131.11,23.45]
[1725590261720,4.0497,131.19,131.11,23.45]
[1725590261921,4.09296421,131.18,131.12,3.814]
[1725590262121,3.8125,131.18,131.12,3.814]
[1725590262622,0.05840327,131.16,131.14,0.04998735]
[1725590263419,3.8133,131.15,131.14,0.04998735]
[1725590263724,3.7591435,131.15,131.14,0.04998735]
[1725590263930,0.05840327,131.16,131.14,0.04998735]
[1725590264920,3.78241638,131.15,131.14,0.04998735]
[1725590266922,0.05840327,131.16,131.14,9.41998735]
[1725590267524,0.05840327,131.16,131.15,3.8133]
[1725590269421,0.05840327,131.16,131.14,27.31358735]
[1725590270622,3.76943891,131.15,131.14,0.04998735]
[1725590271021,0.05840327,131.16,131.14,0.04998735]
[1725590271625,0.05840327,131.16,131.14,23.49998735]
[1725590272825,0.05840327,131.16,131.14,27.31358735]
[1725590273227,0.05840327,131.16,131.14,3.86358735]
[1725590274331,0.05840327,131.16,131.14,0.04998735]
[1725590276034,0.05840327,131.16,131.14,3.86348735]
[1725590279735,0.05840327,131.16,131.15,27.2633]
[1725590281133,0.05840327,131.16,131.14,3.86348735]
[1725590282632,0.05840327,131.16,131.15,27.2633]
[1725590283334,6.536,131.21,131.17,3.8127]
[1725590283936,6.536,131.21,131.16,3.8129]
[1725590284133,3.8119,131.2,131.16,3.8129]
[1725590284439,0.04842564,131.19,131.17,0.05783567]
[1725590287938,3.8125,131.18,131.17,0.05783567]
[1725590288134,4.09293822,131.18,131.17,0.05783567]
[1725590288530,0.2804447,131.18,131.17,0.05783567]
[1725590288734,3.86062564,131.19,131.17,0.05783567]
[1725590288930,0.28042905,131.18,131.17,0.05783567]
[1725590289131,0.28042296,131.18,131.17,0.05783567]
[1725590291144,0.28042948,131.18,131.17,0.05783567]
[1725590292337,0.04842564,131.19,131.17,0.05783567]
[1725590293248,3.86072564,131.19,131.17,0.05783567]
[1725590293548,0.28042948,131.18,131.17,0.05783567]
[1725590294041,0.04842564,131.19,131.17,0.05783567]
[1725590294641,0.04842564,131.19,131.17,3.87063567]
[1725590294951,0.04842564,131.19,131.17,0.05783567]
[1725590298752,0.04842564,131.19,131.18,9.38]
[1725590300045,0.04842564,131.19,131.18,13.1925]
[1725590300244,0.04842564,131.19,131.17,0.05783567]
[1725590305844,3.86062564,131.19,131.17,0.05783567]
[1725590306039,23.49842564,131.19,131.1,23.45]
[1725590306241,23.45,131.19,131.1,23.45]
[1725590306441,1.4057,131.18,131.1,23.45]
[1725590306853,5.1177,131.17,131.12,3.8142]
[1725590307046,0.05414471,131.16,131.13,0.05450518]
[1725590307351,3.84580828,131.15,131.13,0.05450518]